[Event "Titled Tuesday Blitz June 13 Early 2023"]
[White "Peycheva, Gergana"]
[Black "Zaksaite, Salomeja"]
[WhiteFideId "2916711"]
[BlackFideId "12801496"]
[WhiteElo "2216"]
[BlackElo "2059"]
[Result "1-0"]
[Round "8"]
[TimeControl "180+2"]
[Date "2023.06.13"]
[WhiteClock "0:00:13"]
[BlackClock "0:00:04"]
[Board "150"]

1. d4 {[%clk 0:03:00]}  Nf6 {[%clk 0:02:58]} 2. c4 {[%clk 0:03:01]}  g6 {[%clk 0:02:57]} 3. Nc3 {[%clk 0:03:00]}  Bg7 {[%clk 0:02:58]} 4. e4 {[%clk 0:03:00]}  d6 {[%clk 0:02:59]} 5. Nf3 {[%clk 0:03:01]}  O-O {[%clk 0:02:58]} 6. Be2 {[%clk 0:03:01]}  e5 {[%clk 0:02:55]} 7. O-O {[%clk 0:03:02]}  exd4 {[%clk 0:02:50]} 8. Nxd4 {[%clk 0:03:03]}  Nc6 {[%clk 0:02:50]} 9. Nxc6 {[%clk 0:02:53]}  bxc6 {[%clk 0:02:50]} 10. Be3 {[%clk 0:02:53]}  Re8 {[%clk 0:02:48]} 11. f3 {[%clk 0:02:52]}  Bd7 {[%clk 0:02:45]} 12. Qd2 {[%clk 0:02:52]}  a6 {[%clk 0:02:39]} 13. Rfd1 {[%clk 0:02:51]}  Qc8 {[%clk 0:02:38]} 14. Rac1 {[%clk 0:02:47]}  Rb8 {[%clk 0:02:38]} 15. b3 {[%clk 0:02:41]}  Qb7 {[%clk 0:02:12]} 16. Bf1 {[%clk 0:02:39]}  Qb4 {[%clk 0:02:09]} 17. Bd4 {[%clk 0:02:33]}  Qb7 {[%clk 0:02:04]} 18. Ne2 {[%clk 0:02:31]}  Nh5 {[%clk 0:02:00]} 19. Bxg7 {[%clk 0:02:27]}  Nxg7 {[%clk 0:02:00]} 20. c5 {[%clk 0:02:27]}  d5 {[%clk 0:01:40]} 21. exd5 {[%clk 0:02:28]}  cxd5 {[%clk 0:01:38]} 22. Qxd5 {[%clk 0:02:26]}  Bc6 {[%clk 0:01:37]} 23. Qg5 {[%clk 0:02:23]}  Nf5 {[%clk 0:01:34]} 24. Nd4 {[%clk 0:02:04]}  Ne3 {[%clk 0:01:11]} 25. Re1 {[%clk 0:01:53]}  Nxf1 {[%clk 0:01:08]} 26. Kxf1 {[%clk 0:01:53]}  Qb4 {[%clk 0:00:38]} 27. Qf6 {[%clk 0:01:25]}  Rxe1+ {[%clk 0:00:22]} 28. Rxe1 {[%clk 0:01:13]}  Bb5+ {[%clk 0:00:22]} 29. Kg1 {[%clk 0:01:06]}  Qxc5 {[%clk 0:00:21]} 30. Kh1 {[%clk 0:01:04]}  Re8 {[%clk 0:00:15]} 31. Rxe8+ {[%clk 0:00:51]}  Bxe8 {[%clk 0:00:16]} 32. h3 {[%clk 0:00:45]}  Qd6 {[%clk 0:00:16]} 33. Qxd6 {[%clk 0:00:32]}  cxd6 {[%clk 0:00:17]} 34. Kg1 {[%clk 0:00:32]}  Kf8 {[%clk 0:00:16]} 35. Kf2 {[%clk 0:00:32]}  Ke7 {[%clk 0:00:16]} 36. Ke3 {[%clk 0:00:33]}  d5 {[%clk 0:00:11]} 37. Kf4 {[%clk 0:00:25]}  Kd6 {[%clk 0:00:10]} 38. b4 {[%clk 0:00:26]}  f6 {[%clk 0:00:09]} 39. h4 {[%clk 0:00:25]}  h6 {[%clk 0:00:09]} 40. g4 {[%clk 0:00:24]}  Bd7 {[%clk 0:00:08]} 41. g5 {[%clk 0:00:12]}  fxg5+ {[%clk 0:00:08]} 42. hxg5 {[%clk 0:00:12]}  h5 {[%clk 0:00:08]} 43. Ne2 {[%clk 0:00:07]}  h4 {[%clk 0:00:08]} 44. Ng1 {[%clk 0:00:03]}  h3 {[%clk 0:00:08]} 45. Kg3 {[%clk 0:00:03]}  Ke5 {[%clk 0:00:08]} 46. Nxh3 {[%clk 0:00:03]}  Bxh3 {[%clk 0:00:08]} 47. Kxh3 {[%clk 0:00:04]}  d4 {[%clk 0:00:08]} 48. Kg3 {[%clk 0:00:04]}  Kd5 {[%clk 0:00:07]} 49. Kf2 {[%clk 0:00:04]}  Kc4 {[%clk 0:00:07]} 50. Ke2 {[%clk 0:00:03]}  Kxb4 {[%clk 0:00:07]} 51. Kd3 {[%clk 0:00:04]}  Kc5 {[%clk 0:00:06]} 52. f4 {[%clk 0:00:04]}  Kd5 {[%clk 0:00:07]} 53. a3 {[%clk 0:00:04]}  a5 {[%clk 0:00:06]} 54. a4 {[%clk 0:00:04]}  Kc5 {[%clk 0:00:07]} 55. f5 {[%clk 0:00:05]}  Kd6 {[%clk 0:00:03]} 56. fxg6 {[%clk 0:00:05]}  Ke7 {[%clk 0:00:02]} 57. g7 {[%clk 0:00:06]}  Kf7 {[%clk 0:00:02]} 58. Kxd4 {[%clk 0:00:07]}  Kxg7 {[%clk 0:00:03]} 59. Kc5 {[%clk 0:00:08]}  Kg6 {[%clk 0:00:03]} 60. Kb5 {[%clk 0:00:09]}  Kxg5 {[%clk 0:00:04]} 61. Kxa5 {[%clk 0:00:09]}  Kf6 {[%clk 0:00:05]} 62. Kb6 {[%clk 0:00:10]}  Ke7 {[%clk 0:00:05]} 63. a5 {[%clk 0:00:11]}  Kd8 {[%clk 0:00:05]} 64. a6 {[%clk 0:00:12]}  Kc8 {[%clk 0:00:04]} 65. a7 {[%clk 0:00:13]} 1-0


[Site "https://www.chess.com"]

[Event "Titled Tuesday Blitz June 13 Early 2023"]
[White "Tokman, Ariel"]
[Black "Samaganova, Aleksandra"]
[WhiteFideId "117420"]
[BlackFideId "13800221"]
[WhiteElo "2263"]
[BlackElo "1858"]
[Result "0-1"]
[Round "8"]
[TimeControl "180+2"]
[Date "2023.06.13"]
[WhiteClock "0:00:03"]
[BlackClock "0:00:06"]
[Board "151"]

1. b3 {[%clk 0:02:53]}  c5 {[%clk 0:02:58]} 2. Bb2 {[%clk 0:02:47]}  Nf6 {[%clk 0:02:57]} 3. e3 {[%clk 0:02:40]}  e6 {[%clk 0:02:56]} 4. Nf3 {[%clk 0:02:41]}  Nc6 {[%clk 0:02:55]} 5. c4 {[%clk 0:02:40]}  d5 {[%clk 0:02:55]} 6. cxd5 {[%clk 0:02:39]}  exd5 {[%clk 0:02:46]} 7. Bb5 {[%clk 0:02:20]}  Be7 {[%clk 0:02:40]} 8. O-O {[%clk 0:02:20]}  Bg4 {[%clk 0:02:34]} 9. d4 {[%clk 0:02:17]}  cxd4 {[%clk 0:02:27]} 10. Qxd4 {[%clk 0:01:43]}  Bxf3 {[%clk 0:02:17]} 11. gxf3 {[%clk 0:01:40]}  O-O {[%clk 0:02:15]} 12. Bxc6 {[%clk 0:01:38]}  bxc6 {[%clk 0:02:16]} 13. Nc3 {[%clk 0:01:36]}  Qd7 {[%clk 0:01:42]} 14. Ne2 {[%clk 0:01:29]}  Qf5 {[%clk 0:01:39]} 15. Kg2 {[%clk 0:01:29]}  Rab8 {[%clk 0:01:14]} 16. Ng3 {[%clk 0:01:25]}  Qd7 {[%clk 0:01:01]} 17. Rac1 {[%clk 0:01:22]}  Rb4 {[%clk 0:00:57]} 18. Qe5 {[%clk 0:01:16]}  Rh4 {[%clk 0:00:52]} 19. Qf5 {[%clk 0:01:16]}  Qb7 {[%clk 0:00:36]} 20. Qg5 {[%clk 0:01:08]}  Ne8 {[%clk 0:00:33]} 21. Qf5 {[%clk 0:00:56]}  Bf6 {[%clk 0:00:25]} 22. Bxf6 {[%clk 0:00:44]}  Nxf6 {[%clk 0:00:25]} 23. Qg5 {[%clk 0:00:44]}  Rh6 {[%clk 0:00:24]} 24. Kh1 {[%clk 0:00:33]}  Rg6 {[%clk 0:00:24]} 25. Qf5 {[%clk 0:00:32]}  Re8 {[%clk 0:00:23]} 26. Rg1 {[%clk 0:00:31]}  h6 {[%clk 0:00:23]} 27. Qf4 {[%clk 0:00:27]}  Nh7 {[%clk 0:00:20]} 28. Nf5 {[%clk 0:00:27]}  Ree6 {[%clk 0:00:13]} 29. Rxg6 {[%clk 0:00:20]}  Rxg6 {[%clk 0:00:12]} 30. Qe5 {[%clk 0:00:19]}  Ng5 {[%clk 0:00:04]} 31. Ne7+ {[%clk 0:00:15]}  Kh7 {[%clk 0:00:05]} 32. Nxg6 {[%clk 0:00:14]}  fxg6 {[%clk 0:00:05]} 33. Qg3 {[%clk 0:00:10]}  Qf7 {[%clk 0:00:04]} 34. Kg2 {[%clk 0:00:09]}  Qf6 {[%clk 0:00:03]} 35. h4 {[%clk 0:00:07]}  Nf7 {[%clk 0:00:04]} 36. b4 {[%clk 0:00:07]}  Ne5 {[%clk 0:00:04]} 37. f4 {[%clk 0:00:06]}  Nc4 {[%clk 0:00:04]} 38. Rc2 {[%clk 0:00:03]}  Qf5 {[%clk 0:00:04]} 39. Rc1 {[%clk 0:00:03]}  Qe4+ {[%clk 0:00:04]} 40. Qf3 {[%clk 0:00:03]}  Qf5 {[%clk 0:00:04]} 41. Rg1 {[%clk 0:00:04]}  Nd2 {[%clk 0:00:04]} 42. Qg3 {[%clk 0:00:03]}  Qe4+ {[%clk 0:00:04]} 43. Kh3 {[%clk 0:00:04]}  Nf3 {[%clk 0:00:04]} 44. Rg2 {[%clk 0:00:04]}  h5 {[%clk 0:00:04]} 45. Rg1 {[%clk 0:00:03]}  Nd2 {[%clk 0:00:04]} 46. Rg2 {[%clk 0:00:03]}  Nf3 {[%clk 0:00:04]} 47. Rh2 {[%clk 0:00:02]}  Qf5+ {[%clk 0:00:04]} 48. Kg2 {[%clk 0:00:02]}  Ne1+ {[%clk 0:00:05]} 49. Kf1 {[%clk 0:00:02]}  Qb1 {[%clk 0:00:05]} 50. Ke2 {[%clk 0:00:02]}  Nc2 {[%clk 0:00:05]} 51. Kf3 {[%clk 0:00:02]}  Nxb4 {[%clk 0:00:05]} 52. Qg1 {[%clk 0:00:02]}  Qe4+ {[%clk 0:00:05]} 53. Ke2 {[%clk 0:00:03]}  Qd3+ {[%clk 0:00:06]} 54. Ke1 {[%clk 0:00:03]}  Nc2# {[%clk 0:00:06]} 0-1


[Site "https://www.chess.com"]

[Event "Titled Tuesday Blitz June 13 Early 2023"]
[White "Acikel, Mert"]
[Black "Mrudul Dehankar"]
[WhiteFideId "12956465"]
[BlackFideId "25096990"]
[WhiteElo "2097"]
[BlackElo "2139"]
[Result "1-0"]
[Round "8"]
[TimeControl "180+2"]
[Date "2023.06.13"]
[WhiteClock "0:00:09"]
[BlackClock "0:00:00"]
[Board "154"]

1. e4 {[%clk 0:03:00]}  c6 {[%clk 0:02:56]} 2. Nc3 {[%clk 0:02:59]}  d5 {[%clk 0:02:56]} 3. Nf3 {[%clk 0:02:59]}  Bg4 {[%clk 0:02:57]} 4. h3 {[%clk 0:02:59]}  Bxf3 {[%clk 0:02:56]} 5. Qxf3 {[%clk 0:03:00]}  e6 {[%clk 0:02:57]} 6. Be2 {[%clk 0:03:00]}  Nd7 {[%clk 0:02:57]} 7. d4 {[%clk 0:03:00]}  g6 {[%clk 0:02:56]} 8. O-O {[%clk 0:02:58]}  Bg7 {[%clk 0:02:55]} 9. Be3 {[%clk 0:02:55]}  Ne7 {[%clk 0:02:54]} 10. e5 {[%clk 0:02:49]}  O-O {[%clk 0:02:53]} 11. Bg5 {[%clk 0:02:45]}  f6 {[%clk 0:02:34]} 12. exf6 {[%clk 0:02:39]}  Nxf6 {[%clk 0:02:34]} 13. Qe3 {[%clk 0:02:38]}  Qd7 {[%clk 0:02:26]} 14. Bd3 {[%clk 0:02:35]}  Nf5 {[%clk 0:02:19]} 15. Bxf5 {[%clk 0:02:30]}  exf5 {[%clk 0:02:18]} 16. Bxf6 {[%clk 0:02:16]}  Bxf6 {[%clk 0:02:16]} 17. Rad1 {[%clk 0:02:15]}  Rae8 {[%clk 0:02:15]} 18. Qf3 {[%clk 0:02:16]}  Qg7 {[%clk 0:02:09]} 19. Ne2 {[%clk 0:02:13]}  Rf7 {[%clk 0:01:59]} 20. c3 {[%clk 0:02:09]}  Rfe7 {[%clk 0:01:58]} 21. Nc1 {[%clk 0:02:08]}  Re4 {[%clk 0:01:14]} 22. Nd3 {[%clk 0:02:07]}  Be7 {[%clk 0:01:11]} 23. a4 {[%clk 0:02:03]}  Bd6 {[%clk 0:01:09]} 24. a5 {[%clk 0:01:56]}  Qc7 {[%clk 0:01:08]} 25. b4 {[%clk 0:01:53]}  Qe7 {[%clk 0:01:01]} 26. Ra1 {[%clk 0:01:44]}  Kg7 {[%clk 0:00:55]} 27. Nc5 {[%clk 0:01:27]}  Re2 {[%clk 0:00:52]} 28. Nd3 {[%clk 0:01:04]}  Qe4 {[%clk 0:00:40]} 29. Qxe4 {[%clk 0:01:01]}  fxe4 {[%clk 0:00:39]} 30. Nc5 {[%clk 0:01:00]}  b6 {[%clk 0:00:31]} 31. axb6 {[%clk 0:00:57]}  axb6 {[%clk 0:00:31]} 32. Nd7 {[%clk 0:00:39]}  b5 {[%clk 0:00:29]} 33. Ra6 {[%clk 0:00:38]}  Rc2 {[%clk 0:00:24]} 34. Rxc6 {[%clk 0:00:37]}  Bxb4 {[%clk 0:00:18]} 35. Nf6 {[%clk 0:00:18]}  Rf8 {[%clk 0:00:15]} 36. Nxd5 {[%clk 0:00:15]}  Ba5 {[%clk 0:00:15]} 37. Rc5 {[%clk 0:00:12]}  Rf5 {[%clk 0:00:12]} 38. Rxb5 {[%clk 0:00:10]}  Bxc3 {[%clk 0:00:09]} 39. Rb7+ {[%clk 0:00:11]}  Rf7 {[%clk 0:00:08]} 40. Rxf7+ {[%clk 0:00:11]}  Kxf7 {[%clk 0:00:08]} 41. Nxc3 {[%clk 0:00:12]}  Rxc3 {[%clk 0:00:07]} 42. Rd1 {[%clk 0:00:13]}  Ke6 {[%clk 0:00:07]} 43. Kf1 {[%clk 0:00:10]}  Kd5 {[%clk 0:00:07]} 44. Ke2 {[%clk 0:00:09]}  Ra3 {[%clk 0:00:05]} 45. Rd2 {[%clk 0:00:09]}  g5 {[%clk 0:00:02]} 46. g3 {[%clk 0:00:08]}  h6 {[%clk 0:00:03]} 47. Rd1 {[%clk 0:00:08]}  Ra2+ {[%clk 0:00:03]} 48. Ke3 {[%clk 0:00:09]}  Ra3+ {[%clk 0:00:03]} 49. Ke2 {[%clk 0:00:09]}  Ra4 {[%clk 0:00:03]} 50. Rb1 {[%clk 0:00:08]}  Ra2+ {[%clk 0:00:02]} 51. Kf1 {[%clk 0:00:09]}  Kxd4 {[%clk 0:00:02]} 52. Rb6 {[%clk 0:00:09]}  Kd3 {[%clk 0:00:00]} 53. Rxh6 {[%clk 0:00:09]} 1-0


[Site "https://www.chess.com"]

[Event "Titled Tuesday Blitz June 13 Early 2023"]
[White "Kuznetsov, Mikhail"]
[Black "SicilianPanzer"]
[WhiteFideId "4117190"]
[WhiteElo "1981"]
[BlackElo "2243"]
[Result "0-1"]
[Round "8"]
[TimeControl "180+2"]
[Date "2023.06.13"]
[WhiteClock "0:00:00"]
[BlackClock "0:00:03"]
[Board "155"]

1. d4 {[%clk 0:03:00]}  Nf6 {[%clk 0:02:58]} 2. Nf3 {[%clk 0:02:58]}  a6 {[%clk 0:02:52]} 3. c4 {[%clk 0:02:56]}  e6 {[%clk 0:02:52]} 4. Nc3 {[%clk 0:02:44]}  d5 {[%clk 0:02:50]} 5. Bg5 {[%clk 0:02:43]}  dxc4 {[%clk 0:02:48]} 6. a4 {[%clk 0:02:42]}  Nc6 {[%clk 0:02:42]} 7. e3 {[%clk 0:02:40]}  Na5 {[%clk 0:02:40]} 8. Ne5 {[%clk 0:02:34]}  Bb4 {[%clk 0:02:17]} 9. Nxc4 {[%clk 0:02:30]}  Qd5 {[%clk 0:02:15]} 10. Bxf6 {[%clk 0:02:26]}  gxf6 {[%clk 0:02:15]} 11. e4 {[%clk 0:02:15]}  Qxe4+ {[%clk 0:02:10]} 12. Qe2 {[%clk 0:02:11]}  Qxd4 {[%clk 0:01:54]} 13. Nxa5 {[%clk 0:02:07]}  Bxa5 {[%clk 0:01:52]} 14. Rc1 {[%clk 0:02:05]}  O-O {[%clk 0:01:47]} 15. h4 {[%clk 0:02:02]}  e5 {[%clk 0:01:42]} 16. h5 {[%clk 0:02:02]}  Bf5 {[%clk 0:01:19]} 17. g4 {[%clk 0:01:51]}  Bxg4 {[%clk 0:01:14]} 18. Rg1 {[%clk 0:01:51]}  f5 {[%clk 0:01:13]} 19. Bh3 {[%clk 0:01:44]}  Kh8 {[%clk 0:00:59]} 20. Bxg4 {[%clk 0:01:33]}  Rg8 {[%clk 0:00:56]} 21. Kf1 {[%clk 0:01:28]}  fxg4 {[%clk 0:00:48]} 22. Rd1 {[%clk 0:01:23]}  Qf4 {[%clk 0:00:40]} 23. Nd5 {[%clk 0:00:52]}  Qg5 {[%clk 0:00:39]} 24. b4 {[%clk 0:00:25]}  c6 {[%clk 0:00:18]} 25. bxa5 {[%clk 0:00:20]}  cxd5 {[%clk 0:00:18]} 26. Rxd5 {[%clk 0:00:21]}  f6 {[%clk 0:00:14]} 27. Rd7 {[%clk 0:00:13]}  Qc1+ {[%clk 0:00:13]} 28. Rd1 {[%clk 0:00:09]}  Qc6 {[%clk 0:00:13]} 29. h6 {[%clk 0:00:04]}  Rg6 {[%clk 0:00:08]} 30. Rg2 {[%clk 0:00:02]}  Rxh6 {[%clk 0:00:07]} 31. Kg1 {[%clk 0:00:02]}  Rg6 {[%clk 0:00:06]} 32. Rd2 {[%clk 0:00:02]}  Rag8 {[%clk 0:00:06]} 33. Qd1 {[%clk 0:00:01]}  g3 {[%clk 0:00:04]} 34. f3 {[%clk 0:00:01]}  Qc5+ {[%clk 0:00:04]} 35. Kf1 {[%clk 0:00:01]}  e4 {[%clk 0:00:04]} 36. Rd5 {[%clk 0:00:01]}  Qc4+ {[%clk 0:00:03]} 37. Kg1 {[%clk 0:00:02]}  exf3 {[%clk 0:00:03]} 38. Qxf3 {[%clk 0:00:02]}  Qc1+ {[%clk 0:00:03]} 39. Rd1 {[%clk 0:00:02]}  Qc5+ {[%clk 0:00:04]} 40. Kf1 {[%clk 0:00:02]}  Re8 {[%clk 0:00:04]} 41. Qf5 {[%clk 0:00:02]}  Qxf5+ {[%clk 0:00:03]} 42. Kg1 {[%clk 0:00:02]}  Qc5+ {[%clk 0:00:03]} 43. Kf1 {[%clk 0:00:03]}  Re5 {[%clk 0:00:03]} 44. Rdd2 {[%clk 0:00:01]}  Kg7 {[%clk 0:00:03]} 45. Rd3 {[%clk 0:00:01]}  Rf5+ {[%clk 0:00:03]} 46. Ke2 {[%clk 0:00:01]}  Qc2+ {[%clk 0:00:04]} 47. Rd2 {[%clk 0:00:01]}  Re5+ {[%clk 0:00:04]} 48. Kf3 {[%clk 0:00:00]}  Qc3+ {[%clk 0:00:03]} 0-1


[Site "https://www.chess.com"]

[Event "Titled Tuesday Blitz June 13 Early 2023"]
[White "Kopczynski, Michal"]
[Black "rionelG"]
[WhiteFideId "1124200"]
[WhiteElo "2212"]
[BlackElo "2227"]
[Result "1-0"]
[Round "8"]
[TimeControl "180+2"]
[Date "2023.06.13"]
[WhiteClock "0:02:16"]
[BlackClock "0:00:23"]
[Board "156"]

1. e4 {[%clk 0:03:00]}  c5 {[%clk 0:02:19]} 2. d4 {[%clk 0:02:58]}  cxd4 {[%clk 0:02:19]} 3. c3 {[%clk 0:02:58]}  dxc3 {[%clk 0:02:19]} 4. Nxc3 {[%clk 0:02:59]}  Nc6 {[%clk 0:02:19]} 5. f4 {[%clk 0:03:00]}  d6 {[%clk 0:02:18]} 6. Nf3 {[%clk 0:03:00]}  a6 {[%clk 0:02:18]} 7. Bd3 {[%clk 0:03:00]}  Nf6 {[%clk 0:02:17]} 8. O-O {[%clk 0:03:01]}  e6 {[%clk 0:02:15]} 9. Kh1 {[%clk 0:03:01]}  Be7 {[%clk 0:02:15]} 10. Qe1 {[%clk 0:03:02]}  O-O {[%clk 0:02:15]} 11. Be3 {[%clk 0:03:02]}  d5 {[%clk 0:02:09]} 12. e5 {[%clk 0:03:01]}  d4 {[%clk 0:02:02]} 13. Rd1 {[%clk 0:02:56]}  dxe3 {[%clk 0:01:49]} 14. exf6 {[%clk 0:02:57]}  Bxf6 {[%clk 0:01:26]} 15. Bxh7+ {[%clk 0:02:56]}  Kxh7 {[%clk 0:01:26]} 16. Rxd8 {[%clk 0:02:57]}  Rxd8 {[%clk 0:01:26]} 17. Ne4 {[%clk 0:02:49]}  Be7 {[%clk 0:01:21]} 18. Nfg5+ {[%clk 0:02:46]}  Kg8 {[%clk 0:01:21]} 19. Qxe3 {[%clk 0:02:35]}  e5 {[%clk 0:01:10]} 20. f5 {[%clk 0:02:32]}  Bxg5 {[%clk 0:00:57]} 21. Qxg5 {[%clk 0:02:26]}  Kf8 {[%clk 0:00:41]} 22. f6 {[%clk 0:02:24]}  gxf6 {[%clk 0:00:37]} 23. Qxf6 {[%clk 0:02:18]}  Be6 {[%clk 0:00:35]} 24. Qxe6 {[%clk 0:02:17]}  Rd1 {[%clk 0:00:23]} 25. Qxf7# {[%clk 0:02:16]} 1-0


[Site "https://www.chess.com"]

[Event "Titled Tuesday Blitz June 13 Early 2023"]
[White "Xavier_mompel"]
[Black "Mazurkiewicz, Michal"]
[BlackFideId "1124943"]
[WhiteElo "2204"]
[BlackElo "2063"]
[Result "1/2-1/2"]
[Round "8"]
[TimeControl "180+2"]
[Date "2023.06.13"]
[WhiteClock "0:00:23"]
[BlackClock "0:00:08"]
[Board "157"]

1. e4 {[%clk 0:03:00]}  d6 {[%clk 0:03:00]} 2. d4 {[%clk 0:03:00]}  Nf6 {[%clk 0:03:00]} 3. Nc3 {[%clk 0:02:59]}  c6 {[%clk 0:03:01]} 4. Be3 {[%clk 0:02:58]}  e5 {[%clk 0:03:00]} 5. dxe5 {[%clk 0:02:57]}  dxe5 {[%clk 0:03:01]} 6. Qxd8+ {[%clk 0:02:57]}  Kxd8 {[%clk 0:03:02]} 7. Bc4 {[%clk 0:02:55]}  Be6 {[%clk 0:03:02]} 8. Bxe6 {[%clk 0:02:55]}  fxe6 {[%clk 0:03:02]} 9. f3 {[%clk 0:02:54]}  Nbd7 {[%clk 0:03:01]} 10. Nge2 {[%clk 0:02:53]}  Bc5 {[%clk 0:02:58]} 11. Bxc5 {[%clk 0:02:51]}  Nxc5 {[%clk 0:02:59]} 12. O-O-O+ {[%clk 0:02:51]}  Ke7 {[%clk 0:02:59]} 13. Rd2 {[%clk 0:02:47]}  b5 {[%clk 0:02:59]} 14. a3 {[%clk 0:02:40]}  a5 {[%clk 0:02:58]} 15. Rhd1 {[%clk 0:02:38]}  b4 {[%clk 0:02:55]} 16. Nb1 {[%clk 0:02:38]}  Rhb8 {[%clk 0:02:41]} 17. h4 {[%clk 0:02:21]}  Rb6 {[%clk 0:02:35]} 18. g4 {[%clk 0:02:16]}  Rab8 {[%clk 0:02:32]} 19. b3 {[%clk 0:02:05]}  a4 {[%clk 0:02:28]} 20. bxa4 {[%clk 0:01:55]}  bxa3 {[%clk 0:02:27]} 21. Nxa3 {[%clk 0:01:54]}  Rb4 {[%clk 0:02:28]} 22. Nc3 {[%clk 0:01:35]}  Nxa4 {[%clk 0:02:19]} 23. Nxa4 {[%clk 0:01:34]}  Rxa4 {[%clk 0:02:19]} 24. Rd3 {[%clk 0:01:34]}  Rb7 {[%clk 0:02:12]} 25. Rc3 {[%clk 0:01:10]}  c5 {[%clk 0:01:20]} 26. Nc4 {[%clk 0:01:03]}  Ra1+ {[%clk 0:01:19]} 27. Kd2 {[%clk 0:01:03]}  Rd7+ {[%clk 0:00:53]} 28. Rd3 {[%clk 0:01:02]}  Rxd3+ {[%clk 0:00:53]} 29. cxd3 {[%clk 0:01:03]}  Ra2+ {[%clk 0:00:54]} 30. Ke3 {[%clk 0:00:51]}  Nd7 {[%clk 0:00:55]} 31. Rb1 {[%clk 0:00:48]}  Ra7 {[%clk 0:00:42]} 32. Nb6 {[%clk 0:00:47]}  Nxb6 {[%clk 0:00:16]} 33. Rxb6 {[%clk 0:00:48]}  Kd7 {[%clk 0:00:16]} 34. Rb8 {[%clk 0:00:40]}  g6 {[%clk 0:00:15]} 35. Rg8 {[%clk 0:00:28]}  Ra3 {[%clk 0:00:14]} 36. Rg7+ {[%clk 0:00:27]}  Kd6 {[%clk 0:00:15]} 37. Ke2 {[%clk 0:00:23]}  Ra2+ {[%clk 0:00:14]} 38. Ke3 {[%clk 0:00:23]}  Ra3 {[%clk 0:00:14]} 39. Ke2 {[%clk 0:00:22]}  Ra2+ {[%clk 0:00:10]} 40. Ke3 {[%clk 0:00:23]}  Ra3 {[%clk 0:00:08]} 1/2-1/2


[Site "https://www.chess.com"]

[Event "Titled Tuesday Blitz June 13 Early 2023"]
[White "Vianello, Enrico"]
[Black "Corredor Castellanos, Camilo"]
[WhiteFideId "810738"]
[BlackFideId "4425871"]
[WhiteElo "2159"]
[BlackElo "1994"]
[Result "0-1"]
[Round "8"]
[TimeControl "180+2"]
[Date "2023.06.13"]
[WhiteClock "0:00:20"]
[BlackClock "0:01:24"]
[Board "161"]

1. Nf3 {[%clk 0:03:00]}  Nf6 {[%clk 0:02:56]} 2. e3 {[%clk 0:03:01]}  c6 {[%clk 0:02:51]} 3. c4 {[%clk 0:03:01]}  g6 {[%clk 0:02:51]} 4. b3 {[%clk 0:03:00]}  Bg7 {[%clk 0:02:51]} 5. Bb2 {[%clk 0:03:01]}  O-O {[%clk 0:02:52]} 6. Be2 {[%clk 0:03:01]}  d5 {[%clk 0:02:51]} 7. O-O {[%clk 0:03:01]}  b6 {[%clk 0:02:42]} 8. d3 {[%clk 0:02:56]}  Bb7 {[%clk 0:02:41]} 9. Nbd2 {[%clk 0:02:56]}  Na6 {[%clk 0:02:38]} 10. Rc1 {[%clk 0:02:55]}  c5 {[%clk 0:02:35]} 11. cxd5 {[%clk 0:02:49]}  Bxd5 {[%clk 0:02:34]} 12. d4 {[%clk 0:02:48]}  Nb4 {[%clk 0:02:29]} 13. a3 {[%clk 0:02:36]}  Nc6 {[%clk 0:02:25]} 14. dxc5 {[%clk 0:02:35]}  Rb8 {[%clk 0:02:12]} 15. cxb6 {[%clk 0:02:29]}  Qxb6 {[%clk 0:02:13]} 16. b4 {[%clk 0:02:27]}  Rfd8 {[%clk 0:02:12]} 17. Qa4 {[%clk 0:02:23]}  a5 {[%clk 0:02:04]} 18. Bd4 {[%clk 0:02:15]}  Nxd4 {[%clk 0:02:02]} 19. Nxd4 {[%clk 0:02:13]}  axb4 {[%clk 0:02:02]} 20. axb4 {[%clk 0:02:09]}  Qxb4 {[%clk 0:02:03]} 21. Qxb4 {[%clk 0:02:09]}  Rxb4 {[%clk 0:02:04]} 22. Bf3 {[%clk 0:02:02]}  e5 {[%clk 0:02:00]} 23. Nc6 {[%clk 0:01:59]}  Bxc6 {[%clk 0:02:00]} 24. Rxc6 {[%clk 0:01:52]}  Rxd2 {[%clk 0:01:59]} 25. Rc8+ {[%clk 0:01:52]}  Bf8 {[%clk 0:01:59]} 26. Ra1 {[%clk 0:01:50]}  Kg7 {[%clk 0:01:59]} 27. h4 {[%clk 0:01:48]}  h5 {[%clk 0:01:55]} 28. Raa8 {[%clk 0:01:40]}  Bd6 {[%clk 0:01:54]} 29. g3 {[%clk 0:01:32]}  e4 {[%clk 0:01:52]} 30. Bg2 {[%clk 0:01:29]}  Rb1+ {[%clk 0:01:52]} 31. Kh2 {[%clk 0:01:26]}  Rxf2 {[%clk 0:01:49]} 32. Rc6 {[%clk 0:01:21]}  Rbb2 {[%clk 0:01:49]} 33. Rxd6 {[%clk 0:01:20]}  Rxg2+ {[%clk 0:01:49]} 34. Kh1 {[%clk 0:01:21]}  Ng4 {[%clk 0:01:49]} 35. Rxg6+ {[%clk 0:01:11]}  Kxg6 {[%clk 0:01:37]} 36. Rg8+ {[%clk 0:01:09]}  Kf5 {[%clk 0:01:37]} 37. Rg5+ {[%clk 0:01:07]}  Ke6 {[%clk 0:01:37]} 38. Re5+ {[%clk 0:01:04]}  Kd6 {[%clk 0:01:37]} 39. Rd5+ {[%clk 0:00:59]}  Kc6 {[%clk 0:01:36]} 40. Rc5+ {[%clk 0:00:59]}  Kb6 {[%clk 0:01:37]} 41. Rc6+ {[%clk 0:00:59]}  Ka5 {[%clk 0:01:36]} 42. Ra6+ {[%clk 0:00:58]}  Kb4 {[%clk 0:01:36]} 43. Ra4+ {[%clk 0:00:52]}  Kc3 {[%clk 0:01:34]} 44. Rc4+ {[%clk 0:00:43]}  Kd3 {[%clk 0:01:34]} 45. Rc3+ {[%clk 0:00:41]}  Kd2 {[%clk 0:01:29]} 46. Rd3+ {[%clk 0:00:37]}  Ke1 {[%clk 0:01:28]} 47. Rd1+ {[%clk 0:00:33]}  Ke2 {[%clk 0:01:22]} 48. Re1+ {[%clk 0:00:25]}  Kf3 {[%clk 0:01:21]} 49. Rf1+ {[%clk 0:00:22]}  Nf2+ {[%clk 0:01:22]} 50. Rxf2+ {[%clk 0:00:20]}  Rbxf2 {[%clk 0:01:23]} 51. g4 {[%clk 0:00:20]}  Rf1# {[%clk 0:01:24]} 0-1


[Site "https://www.chess.com"]